[Event "44th Chess Olympiad Open 2022"]
[Site "Chennai"]
[Date "2022.08.05"]
[Round "7.36"]
[White "Burgos Figueroa, Carlos E."]
[Black "Volodin, Aleksandr"]
[Result "1-0"]
[ECO "B52"]
[WhiteElo "2164"]
[BlackElo "2454"]
[Annotator "TA"]
[PlyCount "99"]
[EventDate "2022.07.29"]
[EventType "team-tourn"]
[EventCountry "IND"]
[SourceTitle "playchess.com"]
[Source "ChessBase"]
[SourceQuality "1"]
[WhiteTeam "El Salvador"]
[BlackTeam "Estonia"]
[WhiteTeamCountry "ESA"]
[BlackTeamCountry "EST"]
[TimeControl "40/5400+30:1800+30"]

{[%evp 9,99,4,16,8,17,14,35,19,34,18,20,29,31,31,41,40,46,49,43,34,41,43,53,0,0,0,13,0,0,0,0,-18,-3,-12,0,-17,22,-18,0,-37,-18,-40,-15,-39,0,0,0,-56,-7,-47,-25,-33,0,0,0,0,0,0,0,0,0,0,0,0,21,0,0,0,0,0,0,0,9,8,15,30,32,34,49,41,69,68,364,368,362,358,432,433,343,275,343,343]} 1. e4 {[%emt 0:00:02]} c5 {[%emt 0:00:10]} 2. Nf3 {[%emt 0:00:29]} d6 {[%emt 0:00:11]} 3. Bb5+ {[%emt 0:00:05]} Nc6 {[%emt 0:01:39]} 4. a4 {[%emt 0:00:04]} Bd7 {[%emt 0:02:49]} 5. O-O {[%emt 0:00:10]} a6 {[%emt 0:00:50]} 6. Bxc6 {[%emt 0:00:06] B52: Sicilian: Moscow Variation with 3...Bd7.} Bxc6 {[%emt 0:00:06]} 7. Re1 {[%emt 0:00:41]} e5 {[%emt 0:04:32]} 8. d3 {[%emt 0:01:54] [#] White is slightly better.} g6 $146 {[%emt 0:05:04]} ({Predecessor:} 8... h6 9. a5 g5 10. Nfd2 Ne7 11. Nc4 Bg7 12. Nbd2 O-O 13. Nf1 f5 14. b3 Ng6 {0-1 (34) Aravindh,C (2641)-Abarca Gonzalez,N (2412) Chess.com INT 2020}) 9. Nbd2 {[%emt 0:00:26]} Bg7 {[%emt 0:03:19]} 10. a5 {[%emt 0:00:20]} Ne7 {[%emt 0:00:21]} 11. Nc4 {[%emt 0:00:11]} Qc7 {[%emt 0:00:17]} 12. Nb6 {[%emt 0:04:16] Pair of Knights!} Rd8 {[%emt 0:00:49]} 13. c4 {[%emt 0:00:05]} O-O {[%emt 0:01:20]} 14. Bg5 {[%emt 0:00:07]} f6 {[%emt 0:00:45]} 15. Bd2 {[%emt 0:00:06]} Nc8 {[%emt 0:03:59]} 16. Nxc8 {[%emt 0:01:28]} (16. Nd5 $14 Bxd5 17. exd5 (17. cxd5 Na7 $11)) 16... Qxc8 {[%emt 0:00:24]} 17. b4 {[%emt 0:00:06]} h6 {[%emt 0:06:00]} 18. h3 {[%emt 0:05:58]} Kh7 {[%emt 0:03:41]} 19. Rb1 {[%emt 0:00:59]} f5 {[%emt 0:01:59]} 20. Nh2 {[%emt 0:00:34]} Rf7 {[%emt 0:07:54]} 21. Qe2 {[%emt 0:02:43]} Bf6 {[%emt 0:05:11]} 22. f3 {[%emt 0:03:11]} h5 {[%emt 0:07:39]} 23. Be3 {[%emt 0:02:11]} Be8 {[%emt 0:00:56]} 24. Rb3 {[%emt 0:01:44]} f4 {[%emt 0:08:46]} 25. Bf2 {[%emt 0:00:19]} g5 {[%emt 0:00:13]} 26. Reb1 {[%emt 0:00:06]} Rg7 {[%emt 0:01:31]} 27. bxc5 {[%emt 0:18:38]} dxc5 {[%emt 0:01:43]} 28. Rb6 {[%emt 0:03:20]} ({White should play} 28. Qb2 $11) 28... Rf7 {[%emt 0:00:10]} (28... Bc6 $15) 29. Qc2 {[%emt 0:00:25]} Bg7 {[%emt 0:04:32]} 30. Qb3 {[%emt 0:03:52]} Rfd7 {[%emt 0:07:47]} 31. Rxb7 {[%emt 0:00:15]} (31. Rd1 {with more complications.} Rc7 32. Qa3 Bf7 33. Rdb1) 31... Rxb7 {[%emt 0:01:05]} 32. Qxb7 {[%emt 0:00:03]} Qxb7 {[%emt 0:00:11]} 33. Rxb7 {[%emt 0:00:05]} Rxd3 {[%emt 0:00:07]} 34. Bxc5 {[%emt 0:00:22]} Kg8 {[%emt 0:01:40]} 35. Rb8 {[%emt 0:23:05]} Kf7 {[%emt 0:00:15]} 36. Ra8 {[%emt 0:00:51]} Rd1+ {[%emt 0:03:30]} 37. Kf2 {[%emt 0:00:59] And now Nf1 would win.} Rd2+ {[%emt 0:00:06]} 38. Ke1 {[%emt 0:06:59]} Rxg2 {[%emt 0:00:23]} 39. Ra7+ {[%emt 0:00:10]} Kg8 {[%emt 0:00:59]} 40. Nf1 {[%emt 0:00:04]} g4 {[%emt 0:02:04]} 41. fxg4 {[%emt 0:31:35]} hxg4 {[%emt 0:40:30]} 42. hxg4 {[%emt 0:00:08]} f3 {[%emt 0:00:00]} 43. Ne3 {[%emt 0:00:00]} ({Much worse is} 43. Rxa6 Re2+ 44. Kd1 Ba4+ 45. Kc1 Re1+ 46. Kd2 Rxf1 47. Ra8+ Kh7 $17) 43... Re2+ {[%emt 0:00:00]} 44. Kf1 {[%emt 0:00:00] Strongly threatening Ra8.} Bf8 {[%emt 0:00:00]} 45. Bb6 {[%emt 0:00:00]} Bf7 $2 {[%emt 0:00:00][%mdl 8192] [#] Loses the game.} (45... Bg6 $1 $14) 46. Ra8 $1 $18 {[%emt 0:00:00] Black must now prevent Bc5.} Kg7 {[%emt 0:00:00]} 47. Nf5+ {[%emt 0:00:00]} Kg8 {[%emt 0:00:00]} 48. Bc5 {[%emt 0:00:00]} Bxc4 {[%emt 0:00:00]} 49. Rxf8+ {[%emt 0:00:00]} Kh7 {[%emt 0:00:00]} 50. Nd6 {[%emt 0:00:00][%csl LRc4,LRf3] Weighted Error Value: White=0.10 (very precise) /Black=0.26 (precise)} 1-0

[Event "44th Chess Olympiad Open 2022"]
[Site "Chennai"]
[Date "2022.08.05"]
[Round "7.37"]
[White "Hernandez Guerrero, Gilberto"]
[Black "Christie, Joshua"]
[Result "1/2-1/2"]
[ECO "C96"]
[WhiteElo "2560"]
[BlackElo "2272"]
[Annotator "TA"]
[PlyCount "119"]
[EventDate "2022.07.29"]
[EventType "team-tourn"]
[EventCountry "IND"]
[SourceTitle "playchess.com"]
[Source "ChessBase"]
[SourceQuality "1"]
[WhiteTeam "Mexico"]
[BlackTeam "Jamaica"]
[WhiteTeamCountry "MEX"]
[BlackTeamCountry "JAM"]
[TimeControl "40/5400+30:1800+30"]

{[%evp 24,119,24,13,41,8,15,-5,50,66,31,13,36,0,38,58,75,64,60,68,114,13,5,15,8,4,23,14,10,0,0,-15,-22,-73,-51,-61,4,0,36,18,64,54,53,64,72,88,66,67,84,52,95,51,66,-69,-72,-66,-67,-67,-66,-67,-67,-73,-56,-61,-56,-56,-54,-54,-56,-62,-54,-62,-75,-70,-8,-8,-9,-8,-9,-8,0,0,0,0,0,0,0,0,0,0,0,0,0,0,0,0,0,0]} 1. e4 {[%emt 0:00:18]} e5 {[%emt 0:00:45]} 2. Nf3 {[%emt 0:00:20]} Nc6 {[%emt 0:00:13]} 3. Bb5 {[%emt 0:00:29]} a6 {[%emt 0:00:21]} 4. Ba4 {[%emt 0:00:19]} Nf6 {[%emt 0:00:17]} 5. O-O {[%emt 0:01:27]} Be7 {[%emt 0:00:29]} 6. Re1 {[%emt 0:03:38]} b5 {[%emt 0:00:41]} 7. Bb3 {[%emt 0:00:05]} O-O {[%emt 0:00:22]} 8. h3 {[%emt 0:00:19]} d6 {[%emt 0:00:36]} 9. c3 {[%emt 0:00:07]} Na5 {[%emt 0:00:43]} 10. Bc2 {[%emt 0:00:07]} c5 {[%emt 0:00:23]} 11. d4 {[%emt 0:00:13]} Nd7 {[%emt 0:00:43]} 12. Nbd2 {[%emt 0:08:57]} exd4 {[%emt 0:01:08]} 13. cxd4 {[%emt 0:00:05]} Nc6 {[%emt 0:12:15] C96: Closed Ruy Lopez: Chigorin Defence: 11 d4, replies other than 11...Qc7.} 14. a4 {[%emt 0:11:38]} (14. d5 $5 {[%cal Rd5c6]} Nce5 15. Nxe5 Nxe5 16. a4 $11) 14... Rb8 {[%emt 0:00:00] [#]} 15. Nb3 $146 {[%emt 0:22:55]} ({Predecessor:} 15. axb5 axb5 16. d5 Nb4 17. Nb3 Bf6 18. Bf4 Qb6 19. Qc1 Bb7 20. Bg5 Ra8 21. Rxa8 Rxa8 22. Bxf6 Nxf6 {1-0 (39) Jaracz,P (2465)-Banusz,T (2608) Chess.com INT 2022}) 15... Nb6 {[%emt 0:16:06]} (15... c4 $11) 16. axb5 $14 {[%emt 0:00:00]} axb5 {[%emt 0:00:26]} 17. Bf4 {[%emt 0:00:00]} Rb7 {[%emt 0:09:45]} 18. Bb1 {[%emt 0:10:05]} Na4 {[%emt 0:07:11]} 19. Qe2 {[%emt 0:00:00]} c4 {[%emt 0:12:07]} 20. d5 {[%emt 0:00:00]} Ne5 {[%emt 0:03:49]} 21. Nbd4 {[%emt 0:00:00]} (21. Nxe5 dxe5 22. Bxe5 cxb3 $17) 21... Bf6 {[%emt 0:05:39] [#]} (21... Qb6 $14) 22. Nxe5 {[%emt 0:11:49]} (22. Nxb5 $1 $16 {[%mdl 512] Black must now prevent Nxe5.} Bd7 (22... Rxb5 23. Bxe5) 23. Bxe5 (23. Rxa4 Bxb5 24. Rb4 Nxf3+ 25. Qxf3 Bd4 $11) (23. Nxd6 Rxb2 24. Bxe5 Rxe2 $11) 23... dxe5 24. Rxa4) 22... dxe5 $11 {[%emt 0:01:57]} 23. Nc6 {[%emt 0:00:06][%csl LRd8,LRe5]} Qc7 {[%emt 0:00:25]} 24. Bd2 {[%emt 0:01:16] Black should prevent Ba2.} Bd7 {[%emt 0:06:05]} 25. Ba5 {[%emt 0:00:18]} Nb6 {[%emt 0:01:32]} 26. Nb4 {[%emt 0:09:18]} Ra7 {[%emt 0:01:47]} 27. Qe3 $1 {[%emt 0:01:32]} Qb7 {[%emt 0:01:22]} 28. Ra3 {[%emt 0:01:41] [#]} (28. Nc2 $11 {remains equal.} Rfa8 29. Bxb6 Rxa1 30. Nxa1 Rxa1 31. Qc5) 28... Na4 $1 $17 {[%emt 0:02:53]} 29. Nc6 {[%emt 0:00:12]} Ra6 {[%emt 0:00:31]} (29... Bxc6 $15 30. dxc6 Qe7 31. Rxa4 bxa4) 30. Bb4 $36 {[%emt 0:01:10][%mdl 2048] White fights for an advantage.} Re8 {[%emt 0:02:03]} 31. b3 {[%emt 0:03:08]} (31. Na5 Qc7 32. d6 Qd8 $15) 31... Nb6 {[%emt 0:05:35]} (31... cxb3 $11 32. Na5 (32. Rxb3 Bxc6 33. dxc6 Qxc6 $11) 32... Qb6) 32. Na5 $14 {[%emt 0:05:48] White is much more active.} Qa8 {[%emt 0:02:39]} 33. Bc2 {[%emt 0:03:55]} Rc8 {[%emt 0:01:22]} 34. Rea1 {[%emt 0:00:51]} cxb3 {[%emt 0:02:30] [#]} 35. Nxb3 {[%emt 0:00:39]} Rxa3 {[%emt 0:00:45]} 36. Rxa3 {[%emt 0:00:08]} (36. Bxa3 $6 Nxd5 37. Qd2 Qc6 $11) 36... Qb8 {[%emt 0:00:33]} 37. Nc5 {[%emt 0:01:07]} Nc4 {[%emt 0:01:25][%csl LRa3,LRe3][%cal Bb6c4,Bc4e3,Be3c2,Bc2e1,Be1d3,Bd3c5][%mdl 32]} 38. Nxd7 {[%emt 0:00:22]} ({White should play} 38. Qg3 $14 Qc7 39. Nxd7 Qxd7 40. Rb3) 38... Nxe3 $15 {[%emt 0:00:03]} 39. Nxb8 {[%emt 0:00:11]} Nxc2 {[%emt 0:00:06]} 40. Rc3 {[%emt 0:00:23]} Rxc3 {[%emt 0:00:14]} 41. Bxc3 {[%emt 0:30:07][%mdl 4096] Endgame KBN-KBN} b4 {[%emt 0:30:30]} 42. Bb2 {[%emt 0:05:08] And now Nc6 would win.} Ne1 {[%emt 0:00:00]} 43. Nc6 {[%emt 0:00:00][%csl LRb4,LRe5]} Nd3 {[%emt 0:00:00]} 44. Ba1 {[%emt 0:00:00]} b3 {[%emt 0:00:00] Hoping for ...Kf8.} 45. d6 $1 {[%emt 0:00:00]} Nc5 $1 {[%emt 0:00:00]} 46. Kf1 {[%emt 0:00:00]} Kf8 {[%emt 0:00:00]} 47. f3 {[%emt 0:00:00]} Ke8 {[%emt 0:00:00] Strongly threatening ...Nd3.} ({Much weaker is} 47... Nd3 48. d7 $11) 48. Na5 {[%emt 0:00:00]} Kd7 {[%emt 0:00:00]} ({Black should try} 48... Bg5 $1 $15) 49. Nc4 $1 $11 {[%emt 0:00:00] The position is equal.} Kc6 {[%emt 0:00:00]} 50. Ke2 {[%emt 0:00:00]} Kb5 {[%emt 0:05:38]} 51. Nxe5 {[%emt 0:00:00]} Nd7 {[%emt 0:01:17]} 52. f4 {[%emt 0:00:00]} Bxe5 {[%emt 0:00:06]} 53. Bxe5 {[%emt 0:00:10]} Nxe5 {[%emt 0:00:39]} 54. fxe5 {[%emt 0:00:06] d7 would kill now. KP-KP} b2 {[%emt 0:00:05]} 55. d7 {[%emt 0:00:07]} b1=Q {[%emt 0:00:15]} 56. d8=Q {[%emt 0:00:08] aiming for Qb8+.} Qxe4+ {[%emt 0:01:16]} 57. Kf2 {[%emt 0:00:45]} Qxe5 {[%emt 0:00:32]} 58. Qd7+ {[%emt 0:00:10]} Kc5 {[%emt 0:00:11]} 59. Qxf7 {[%emt 0:00:15]} Kd6 {[%emt 0:00:18]} 60. Qf8+ {[%emt 0:00:15] Weighted Error Value: White=0.16 (very precise) /Black=0.14 (very precise)} 1/2-1/2

[Event "44th Chess Olympiad Open 2022"]
[Site "Chennai"]
[Date "2022.08.05"]
[Round "7.37"]
[White "Capo Vidal, Uriel"]
[Black "Lorne, Ras Malaku"]
[Result "1-0"]
[ECO "E25"]
[WhiteElo "2215"]
[BlackElo "2079"]
[Annotator "NA RC"]
[PlyCount "53"]
[EventDate "2022.07.29"]
[EventType "team-tourn"]
[EventCountry "IND"]
[SourceTitle "playchess.com"]
[Source "ChessBase"]
[SourceQuality "1"]
[WhiteTeam "Mexico"]
[BlackTeam "Jamaica"]
[WhiteTeamCountry "MEX"]
[BlackTeamCountry "JAM"]
[TimeControl "40/5400+30:1800+30"]

1. d4 {[%emt 0:00:06]} Nf6 {[%emt 0:00:13]} 2. c4 {[%emt 0:00:15]} e6 {[%emt 0:00:20]} 3. Nc3 {[%emt 0:00:10]} Bb4 {[%emt 0:00:20]} 4. f3 {[%emt 0:00:59]} d5 {[%emt 0:00:31]} 5. a3 {[%emt 0:00:13]} Bxc3+ {[%emt 0:00:26]} 6. bxc3 {[%emt 0:00:10]} c5 {[%emt 0:00:36]} 7. cxd5 {[%emt 0:00:35]} exd5 {[%emt 0:00:29]} 8. e3 {[%emt 0:00:27]} c4 {[%emt 0:00:56]} 9. g4 {[%emt 0:03:02]} Nc6 {[%emt 0:00:52]} 10. Bg2 {[%emt 0:02:47]} Na5 {[%emt 0:01:51]} 11. Ne2 {[%emt 0:01:37]} Nb3 {[%emt 0:01:35]} 12. Rb1 {[%emt 0:14:33]} O-O {[%emt 0:01:39]} 13. O-O {[%emt 0:05:29]} a5 {[%emt 0:03:10]} 14. Ng3 {[%emt 0:03:02]} b5 {[%emt 0:05:44]} 15. g5 {[%emt 0:00:26]} Ne8 {[%emt 0:00:06]} 16. e4 {[%emt 0:00:06]} Nxc1 {[%emt 0:02:52]} 17. Qxc1 {[%emt 0:00:11]} Nc7 {[%emt 0:03:55]} 18. f4 {[%emt 0:05:40]} dxe4 {[%emt 0:15:13]} 19. Bxe4 {[%emt 0:01:22]} Rb8 {[%emt 0:01:29]} 20. f5 {[%emt 0:01:02]} b4 {[%emt 0:17:46]} 21. axb4 {[%emt 0:07:22]} axb4 {[%emt 0:01:55]} 22. Qf4 {[%emt 0:01:28]} Rb5 {[%emt 0:05:36]} 23. Qh4 {[%emt 0:13:01]} g6 {[%emt 0:13:14]} 24. Qh6 {[%emt 0:02:07]} Bb7 {[%emt 0:21:03]} 25. Rf4 {[%emt 0:05:26]} Re8 {[%emt 0:00:10]} 26. f6 {[%emt 0:02:37]} Ne6 {[%emt 0:00:55]} 27. Rh4 {[%emt 0:00:10]} 1-0

[Event "44th Chess Olympiad Open 2022"]
[Site "Chennai"]
[Date "2022.08.05"]
[Round "7.37"]
[White "Smith, Shreyas"]
[Black "Ibarra Chami, Luis Fernando"]
[Result "1-0"]
[ECO "B22"]
[WhiteElo "2147"]
[BlackElo "2452"]
[Annotator "TA"]
[PlyCount "73"]
[EventDate "2022.07.29"]
[EventType "team-tourn"]
[EventCountry "IND"]
[SourceTitle "playchess.com"]
[Source "ChessBase"]
[SourceQuality "1"]
[WhiteTeam "Jamaica"]
[BlackTeam "Mexico"]
[WhiteTeamCountry "JAM"]
[BlackTeamCountry "MEX"]
[TimeControl "40/5400+30:1800+30"]

{[%evp 17,73,43,69,66,106,106,89,112,343,327,362,223,208,216,335,342,340,195,189,179,371,259,253,218,210,215,236,231,256,245,292,284,285,290,279,237,225,236,222,222,438,424,440,432,412,294,709,588,1296,881,837,744,1442,1315,2693,2261,1815,501]} 1. e4 {[%emt 0:00:04][%cal Be2e4,Be4e5][%mdl 32]} c5 {[%emt 0:00:06]} 2. c3 {[%emt 0:00:19]} Nf6 {[%emt 0:00:33]} 3. e5 {[%emt 0:00:09]} Nd5 {[%emt 0:00:05]} 4. d4 {[%emt 0:00:06]} cxd4 {[%emt 0:00:10]} 5. Nf3 {[%emt 0:00:06]} e6 {[%emt 0:02:59]} 6. cxd4 {[%emt 0:00:21]} b6 {[%emt 0:01:44]} 7. Bc4 {[%emt 0:00:46]} Bb7 {[%emt 0:02:10]} 8. O-O {[%emt 0:00:58]} Be7 {[%emt 0:02:26]} 9. Bxd5 {[%emt 0:00:12]} Bxd5 {[%emt 0:02:12]} 10. Nc3 {[%emt 0:18:52] B22: Sicilian: 2 c3.} Bb7 {[%emt 0:28:12]} 11. d5 $1 {[%emt 0:00:00]} exd5 {[%emt 0:03:07]} 12. Nd4 {[%emt 0:00:00] [#] White is better.} (12. Nxd5 Na6 $14) 12... g6 $146 {[%emt 0:24:18] [#]} (12... Na6 $16) ({Predecessor:} 12... O-O 13. Nf5 d6 14. Nxd5 Bg5 15. Qg4 h6 16. Nde7+ {1-0 (16) Zhigalko,S (2572)-Le,T (2514) Chess.com INT 2022}) 13. Bh6 $1 $18 {[%emt 0:00:00]} Bg5 {[%emt 0:07:04]} 14. Bxg5 {[%emt 0:00:00]} Qxg5 {[%emt 0:00:05]} 15. f4 {[%emt 0:00:00]} Qh4 {[%emt 0:04:49]} (15... Qh5 {was called for.} 16. Ndb5 Qxd1 17. Rfxd1 d4 18. Nd6+ (18. Rxd4 O-O $18) (18. Nxd4 Na6 $16) 18... Kf8) 16. Ndb5 {[%emt 0:05:39] aiming for Nd6+.} O-O {[%emt 0:03:08]} 17. a3 {[%emt 0:03:42]} ({Weaker is} 17. Nxd5 Bxd5 18. Qxd5 Na6 $16) (17. Nd6 $142 Bc6 18. b4 (18. Nxd5 Bxd5 19. Qxd5 Nc6 $18)) 17... d4 {[%emt 0:03:47]} 18. Qxd4 {[%emt 0:00:29] And now Nd6 would win.} ({But not} 18. Nxd4 $6 Na6 $16) 18... Qg4 $2 {[%emt 0:02:58]} (18... Nc6 {might work better.} 19. Qxd7 Qe7) 19. Rf2 {[%emt 0:03:56] Active counter play!} Nc6 {[%emt 0:00:37]} 20. Qd1 {[%emt 0:03:23]} Qxd1+ {[%emt 0:02:11]} 21. Rxd1 {[%emt 0:00:03]} Rad8 {[%emt 0:01:51]} 22. Nd5 {[%emt 0:00:37]} Kg7 {[%emt 0:00:26]} 23. Nd6 {[%emt 0:00:42][%cal Bb5d6,Bd6c4,Bc4b6][%mdl 32]} Ba8 {[%emt 0:01:05]} 24. b4 {[%emt 0:00:27] Against Na5} Nb8 {[%emt 0:00:33]} 25. Nf6 {[%emt 0:02:08] Pair of Knights!} a6 {[%emt 0:01:55]} 26. Nc4 {[%emt 0:00:40]} b5 {[%emt 0:01:31]} 27. Nb6 {[%emt 0:00:07][%csl LRa8,LRd7]} Bc6 {[%emt 0:00:46]} 28. Rd6 {[%emt 0:00:24]} h6 $2 {[%emt 0:00:34]} (28... h5 {is a better defense.} 29. h3 Rh8) 29. g4 {[%emt 0:03:39]} Rh8 {[%emt 0:00:51]} 30. h4 {[%emt 0:00:37]} Bb7 {[%emt 0:00:56]} 31. Rfd2 {[%emt 0:03:09] Hoping for h5.} g5 $2 {[%emt 0:01:29]} (31... h5 32. gxh5 (32. Nbxd7 hxg4 33. Nc5 Rxd6 $16) 32... Bf3) 32. Nh5+ {[%emt 0:02:42] White is clearly winning.} Kh7 {[%emt 0:00:42]} 33. hxg5 {[%emt 0:00:14]} hxg5 {[%emt 0:00:10]} 34. fxg5 {[%emt 0:02:08] Strongly threatening Rf2.} Bc6 {[%emt 0:01:11]} 35. Rf2 {[%emt 0:00:49]} Rdf8 {[%emt 0:00:36]} 36. Rdf6 {[%emt 0:02:00][%cal Ob6c8] White threatens Nc8! and mate.} Be4 {[%emt 0:00:12] [#]} 37. Rh6+ {[%emt 0:00:17] White took control after the opening.  Weighted Error Value: White=0.24 (precise) /Black=0.50} (37. Nxd7 $142 $1 {[%mdl 512]} Nxd7 38. Rxf7+ Rxf7 39. Rxf7+ Kg8 40. Rxd7) 1-0

[Event "44th Chess Olympiad Open 2022"]
[Site "Chennai"]
[Date "2022.08.05"]
[Round "7.37"]
[White "Shaw, Jaden"]
[Black "Montes Orozco, Miguel Angel"]
[Result "0-1"]
[ECO "C68"]
[WhiteElo "1930"]
[BlackElo "2070"]
[Annotator "TA"]
[PlyCount "120"]
[EventDate "2022.07.29"]
[EventType "team-tourn"]
[EventCountry "IND"]
[SourceTitle "playchess.com"]
[Source "ChessBase"]
[SourceQuality "1"]
[WhiteTeam "Jamaica"]
[BlackTeam "Mexico"]
[WhiteTeamCountry "JAM"]
[BlackTeamCountry "MEX"]
[TimeControl "40/5400+30:1800+30"]

{[%evp 16,120,35,24,14,22,12,0,0,0,0,0,0,0,0,0,0,0,0,0,42,10,22,0,0,0,6,-13,-4,-18,-27,-18,-18,-32,-18,-16,-14,-8,-8,-12,-4,-44,-49,-49,-43,-49,-48,-45,-44,-44,-30,-29,-34,-46,-46,-50,-41,-48,-62,-115,-122,-320,-320,-320,-318,-299,-287,-387,-372,-372,-372,-372,-364,-356,-277,-275,-275,-281,-262,-266,-266,-266,-259,-251,-244,-1209,-925,-1662,-1662,-1533,-1393,-1509,-1467,-9928,-925,-917,-852,-29977,-29978,-29978,-29979,-29979,-29980,-29980,-29981,-29982,-29983]} 1. e4 {[%emt 0:00:52]} e5 {[%emt 0:00:09]} 2. Nf3 {[%emt 0:00:27]} Nc6 {[%emt 0:00:07]} 3. Bb5 {[%emt 0:00:41]} a6 {[%emt 0:00:07]} 4. Bxc6 {[%emt 0:00:49]} dxc6 {[%emt 0:00:27]} 5. O-O {[%emt 0:00:45]} Ne7 {[%emt 0:03:37]} 6. Nxe5 {[%emt 0:02:49]} Qd4 {[%emt 0:00:08]} 7. Qh5 {[%emt 0:05:53]} g6 {[%emt 0:00:05]} 8. Qg5 {[%emt 0:00:25]} Bg7 {[%emt 0:00:26]} 9. Nf3 {[%emt 0:01:20]} Qxe4 {[%emt 0:00:08] C68: Ruy Lopez: Exchange Variation, sidelines.} 10. Re1 {[%emt 0:03:13]} Qb4 {[%emt 0:01:36]} 11. d4 {[%emt 0:03:37]} Be6 {[%emt 0:08:08] The position is equal.} 12. c3 {[%emt 0:01:14]} Qb5 {[%emt 0:02:09]} 13. Na3 {[%emt 0:06:04]} Qd5 {[%emt 0:25:09]} 14. Bf4 {[%emt 0:25:00]} h6 {[%emt 0:00:00]} 15. Qxd5 {[%emt 0:00:23]} Nxd5 {[%emt 0:00:00]} 16. Be5 {[%emt 0:00:17]} O-O {[%emt 0:00:00]} 17. c4 {[%emt 0:03:23]} Nb6 {[%emt 0:00:00] [#]} 18. b3 $146 {[%emt 0:00:37]} ({Predecessor:} 18. Bxc7 Nxc4 19. Rxe6 Nxa3 20. Re7 Nc2 21. Rd1 Rfe8 22. Rd7 Re2 23. Kf1 Re4 24. Bb6 {1-0 (49) Petrik,T (2523)-Markos,J (2526) Banska Stiavnica 2006}) 18... Rfc8 {[%emt 0:02:59]} 19. Nb1 {[%emt 0:09:46]} a5 {[%emt 0:19:03]} 20. Nc3 {[%emt 0:10:10]} Bf8 {[%emt 0:03:45]} 21. Ne4 {[%emt 0:02:49] Strongly threatening Nf6+.} Nd7 {[%emt 0:01:46]} 22. Nf6+ {[%emt 0:03:51]} Nxf6 {[%emt 0:00:11]} 23. Bxf6 {[%emt 0:00:02]} a4 {[%emt 0:01:46]} 24. Ne5 {[%emt 0:01:30]} axb3 {[%emt 0:03:53]} 25. axb3 {[%emt 0:00:11]} Bb4 {[%emt 0:00:04]} 26. Red1 {[%emt 0:04:58]} Bf5 {[%emt 0:08:32][%cal Be6f5,Bf5e4,Be4c2,Bc2b3,Bb3c4][%mdl 32]} 27. g4 {[%emt 0:05:18]} Be4 {[%emt 0:02:09]} 28. Kf1 {[%emt 0:01:27]} Bc2 {[%emt 0:03:47] This bishop pair is nice.} 29. Rdc1 {[%emt 0:00:43]} Bxb3 {[%emt 0:00:15]} 30. Rcb1 {[%emt 0:00:28]} Rxa1 {[%emt 0:01:16]} 31. Rxa1 {[%emt 0:00:01] Rb1 is the strong threat.} Bd6 {[%emt 0:01:48]} 32. c5 {[%emt 0:00:52]} Bxe5 {[%emt 0:04:31]} 33. Bxe5 $15 {[%emt 0:00:43][%mdl 4096] Endgame KRB-KRB} Bc4+ {[%emt 0:00:49]} 34. Kg2 {[%emt 0:00:19]} Bd5+ {[%emt 0:00:14]} 35. Kg3 {[%emt 0:00:11]} g5 {[%emt 0:02:17][%cal Of7f6]} 36. f4 {[%emt 0:02:33]} b5 {[%emt 0:01:44][%cal Bb7b5,Bb5b4,Bb4b3][%mdl 32] Hoping for ...b4.} 37. fxg5 {[%emt 0:04:46]} ({Better is} 37. cxb6 $1 $15 cxb6 38. fxg5) 37... hxg5 $17 {[%emt 0:00:02]} 38. h4 $2 {[%emt 0:00:01] White does not recover from this.} (38. Bf6 $17 {keeps fighting.}) 38... gxh4+ $19 {[%emt 0:01:25]} 39. Kxh4 {[%emt 0:00:02]} b4 {[%emt 0:01:39]} 40. Rb1 {[%emt 0:00:23] [#]} b3 {[%emt 0:00:04]} 41. Rb2 {[%emt 0:30:50]} Ra8 {[%emt 0:31:37] aiming for ...Ra2.} 42. Bf4 {[%emt 0:00:00]} Ra2 {[%emt 0:00:00]} 43. Bc1 {[%emt 0:00:00]} Ra1 {[%emt 0:00:00]} 44. Bd2 {[%emt 0:00:00]} Be6 {[%emt 0:00:00]} 45. d5 {[%emt 0:08:18]} Bxd5 {[%emt 0:00:00]} 46. Kg5 {[%emt 0:00:00]} Be6 {[%emt 0:00:00]} 47. Kf6 {[%emt 0:00:00]} Kf8 {[%emt 0:00:00]} 48. g5 {[%emt 0:00:00]} Ke8 {[%emt 0:00:00]} 49. Ke5 {[%emt 0:00:00]} Rf1 {[%emt 0:01:50]} 50. Ke4 $2 {[%emt 0:00:00]} (50. Kd4) 50... Bf5+ {[%emt 0:00:22]} 51. Ke5 {[%emt 0:00:00]} Bc2 {[%emt 0:00:08]} 52. Kd4 {[%emt 0:00:00]} Kd7 {[%emt 0:00:07] Threatens to win with ...Rf5.} 53. Kc4 {[%emt 0:00:00]} Ke6 {[%emt 0:00:15]} 54. Be3 {[%emt 0:00:00]} Ke5 {[%emt 0:00:34]} (54... Kf5 $142 55. Bd2 Rd1) 55. Bd4+ {[%emt 0:00:58]} Ke4 {[%emt 0:00:06] ( -> ...Rf5)} 56. Bf6 {[%emt 0:00:00] [#]} Rxf6 $1 {[%emt 0:00:24] Black mates.} 57. gxf6 {[%emt 0:00:00]} Ke5 {[%emt 0:00:04]} 58. Kc3 {[%emt 0:00:00]} Kxf6 {[%emt 0:00:10]} 59. Kd4 {[%emt 0:00:00]} Ke6 {[%emt 0:00:04]} 60. Ke3 {[%emt 0:00:00]} Kd5 {[%emt 0:00:05] Weighted Error Value: White=0.61/Black=0.20 (precise)} 0-1